fUSD/lending_fUSD_20240428
["ID","MTS","AMOUNT","RATE_DAILY","PERIOD"]
[323771295,1714276239135,-12618.02434194,0.000128,2]
[323771296,1714276239144,-155.0,0.00012998,2]
[323771297,1714276239153,-631.0,0.00013013,2]
[323771298,1714276239163,-169.2,0.000132,10]
[323771299,1714276239172,-150.0,0.00013325,2]
[323771300,1714276239182,-150.0,0.0001359,3]
[323771301,1714276239191,-250.0,0.00013699,2]
[323771302,1714276239201,-500.0,0.00013699,2]
[323771303,1714276239211,-346.42,0.00013802,2]
[323771304,1714276239223,-372.84,0.00014427,2]
[323771305,1714276239233,-150.0,0.0001445,3]
[323771306,1714276239242,-212.429955,0.00014671,2]
[323771307,1714276239254,-170.175139,0.00014671,2]
[323771308,1714276239265,-565.918177,0.00014671,2]
[323771309,1714276239275,-388.885382,0.00014671,2]
[323771310,1714276239287,-4124.235189,0.00014671,2]
[323771311,1714276239296,-200.0,0.00014671,2]
[323771312,1714276239307,-3489.300349,0.00014671,2]
[323771313,1714276239318,-12406.294931,0.00014671,2]
[323771314,1714276239327,-5565.093219,0.00014671,2]
[323771315,1714276239337,-888.747465,0.00014671,2]
[323771316,1714276239346,-610.725919,0.00014671,2]
[323771317,1714276239355,-11817.118476,0.00014671,2]
[323771318,1714276239366,-565.918177,0.00014854,2]
[323771319,1714276239375,-388.885382,0.00014854,2]
[323771320,1714276239385,-4124.235189,0.00014854,2]
[323771321,1714276239394,-3489.300349,0.00014854,2]
[323771322,1714276239403,-12406.294931,0.00014854,2]
[323771323,1714276239414,-5565.093219,0.00014854,2]
[323771324,1714276239424,-888.747465,0.00014854,2]
[323771325,1714276239434,-610.725919,0.00014854,2]
[323771326,1714276239443,-11817.118476,0.00014854,2]
[323771327,1714276239454,-6706.27052445,0.000149,2]
[323771328,1714276239464,-200.0,0.000149,5]
[323771329,1714276239474,-238.96482076,0.00014938,2]
[323771330,1714276239483,-195.99750436,0.00014938,2]
[323771331,1714276239493,-163.16332056,0.00015027,2]
[323771332,1714276239503,-541.21,0.00015027,2]
[323771333,1714276239512,-541.21,0.00015027,2]
[323771334,1714276239522,-541.21,0.00015027,2]
[323771335,1714276239532,-541.21,0.00015028,2]
[323771336,1714276239542,-686345.09301547,0.00015037,2]
[323771337,1714276239551,-565.918177,0.00015038,2]
[323771338,1714276239561,-388.885382,0.00015038,2]
[323771339,1714276239569,-4124.235189,0.00015038,2]
[323771340,1714276239579,-3489.300349,0.00015038,2]
[323771341,1714276239589,-12406.294931,0.00015038,2]
[323771342,1714276239599,-5565.093219,0.00015038,2]
[323771343,1714276239608,-888.747465,0.00015038,2]
[323771344,1714276239617,-610.725919,0.00015038,2]
[323771345,1714276239626,-11817.118476,0.00015038,2]
[323771346,1714276239635,-565.918177,0.00015221,2]
[323771347,1714276239645,-388.885382,0.00015221,2]
[323771348,1714276239654,-4124.235189,0.00015221,2]
[323771349,1714276239663,-3489.300349,0.00015221,2]
[323771350,1714276239672,-12406.294931,0.00015221,2]
[323771351,1714276239683,-5565.093219,0.00015221,2]
[323771352,1714276239692,-888.747465,0.00015221,2]
[323771353,1714276239701,-610.725919,0.00015221,2]
[323771354,1714276239711,-11817.118476,0.00015221,2]
[323771355,1714276239723,-150.0,0.000153,3]
[323771356,1714276239732,-200.0,0.0001536,2]
[323771357,1714276239741,-200.0,0.00015405,2]
[323771358,1714276239750,-565.918177,0.00015405,2]
[323771359,1714276239759,-388.885382,0.00015405,2]
[323771360,1714276239770,-4124.235189,0.00015405,2]
[323771361,1714276239779,-3489.300349,0.00015405,2]
[323771362,1714276239788,-12406.294931,0.00015405,2]
[323771363,1714276239797,-5565.093219,0.00015405,2]
[323771364,1714276239807,-888.747465,0.00015405,2]
[323771365,1714276239816,-11817.118476,0.00015405,2]
[323771366,1714276239825,-610.725919,0.00015405,2]
[323771367,1714276239834,-286.12,0.00015436,2]
[323771368,1714276239843,-346.42,0.00015527,2]
[323771369,1714276239853,-1645.28,0.00015672,2]
[323771370,1714276239863,-161.24761534,0.00016131,2]
[323771371,1714276239872,-150.0,0.0001616,3]
[323771372,1714276239882,-161.24761534,0.00016291,2]
[323771373,1714276239891,-1224.205964,0.000165,2]
[323771374,1714276239901,-195.99750434,0.00016574,2]
[323771375,1714276239911,-372.84,0.00016691,2]
[323771376,1714276239920,-150.0,0.0001702,3]
[323771377,1714276239931,-346.42,0.00017252,2]
[323771379,1714276239940,-150.0,0.0001787,3]
[323771381,1714276239950,-278.94984328,0.0001788,2]
[323771383,1714276239960,-278.94984321,0.0001788,2]
[323771385,1714276239971,-278.94984321,0.0001788,2]
[323771387,1714276239980,-278.94984321,0.0001788,2]
[323771389,1714276239989,-224.82695277,0.0001788,2]
[323771391,1714276239999,-286.12,0.00018175,2]
[323771393,1714276240009,-195.99750434,0.00018209,2]
[323771394,1714276240018,-566.172,0.00018395,2]
[323771396,1714276240027,-161.24761534,0.00018463,2]
[323771398,1714276240037,-150.0,0.00018466,2]
[323771400,1714276240046,-1876.49804314,0.00018621,2]
[323771402,1714276240056,-150.0,0.00018711,2]
[323771403,1714276240065,-278.94984321,0.00018848,2]
[323771404,1714276240074,-150.0,0.00018904,2]
[323771405,1714276240084,-372.84,0.00018954,2]
[323771406,1714276240093,-346.42,0.00018977,2]
[323771408,1714276240103,-161.24761534,0.00018987,2]
[323771411,1714276240113,-150.0,0.00019012,2]
[323771412,1714276240122,-150.0,0.00019023,2]
[323771413,1714276240132,-150.0,0.00019115,2]
[323771414,1714276240141,-150.0,0.00019132,2]
[323771415,1714276240150,-150.0,0.00019225,2]
[323771416,1714276240159,-150.0,0.00019245,2]
[323771417,1714276240169,-150.0,0.00019248,2]
[323771418,1714276240178,-150.0,0.00019266,2]
[323771419,1714276240187,-150.0,0.00019324,2]
[323771420,1714276240197,-150.0,0.00019346,2]
[323771421,1714276240206,-602.28,0.00019348,2]
[323771422,1714276240216,-566.172,0.00019361,2]
[323771423,1714276240225,-313.18035922,0.00019417,2]
[323771424,1714276240234,-150.0,0.00019435,2]
[323771425,1714276240243,-150.0,0.00019519,2]
[323771426,1714276240252,-150.0,0.00019559,2]
[323771427,1714276240261,-150.0,0.00019624,2]
[323771428,1714276240271,-480.417,0.00019805,2]
[323771429,1714276240283,-1006.725,0.00019805,2]
[323771430,1714276240292,-2305.178,0.00019805,2]
[323771431,1714276240302,-1398.375,0.00019805,2]
[323771432,1714276240311,-1261.53,0.00019805,2]
[323771433,1714276240320,-543.654,0.00019805,2]
[323771434,1714276240330,-1865.305,0.00019805,2]
[323771435,1714276240339,-469.418,0.00019805,2]
[323771436,1714276240349,-259.236,0.00019805,2]
[323771437,1714276240361,-810.083,0.00019805,2]
[323771438,1714276240372,-612.322,0.00019805,2]
[323771439,1714276240382,-2454.576,0.00019805,2]
[323771440,1714276240393,-213.378,0.00019805,2]
[323771441,1714276240403,-3132.745,0.00019805,2]
[323771442,1714276240412,-421.39,0.00019805,2]
[323771443,1714276240422,-1552.02,0.00019805,2]
[323771444,1714276240432,-218.0,0.00019805,2]
[323771445,1714276240441,-153.776,0.00019805,2]
[323771446,1714276240452,-1646.439,0.00019805,2]
[323771447,1714276240461,-445.441,0.00019805,2]
[323771448,1714276240473,-1134.016,0.00019805,2]
[323771449,1714276240483,-2291.0,0.00019805,2]
[323771450,1714276240492,-5931.784,0.00019805,2]
[323771451,1714276240502,-37841.248,0.00019805,2]
[323771452,1714276240512,-5751.328,0.00019805,2]
[323771453,1714276240521,-1056.0,0.00019805,2]
[323771454,1714276240530,-278.94984321,0.00019825,2]
[323771455,1714276240539,-195.99750434,0.00019845,2]
[323771456,1714276240548,-151.29703378,0.000199,2]
[323771457,1714276240558,-151.29703378,0.000199,2]
[323771458,1714276240567,-151.29703378,0.000199,2]
[323771459,1714276240578,-150.0,0.0001992,2]
[323771460,1714276240588,-150.0,0.00019921,2]
[323771461,1714276240598,-150.0,0.0001993,2]
[323771462,1714276240607,-151.29703378,0.00019934,2]
[323771463,1714276240618,-150.0,0.00019941,2]
[323771464,1714276240628,-150.0,0.00019952,2]
[323771465,1714276240638,-150.0,0.0001996,2]
[323771466,1714276240647,-150.0,0.0001996,2]
[323771467,1714276240657,-541.21,0.0001999,2]
[323771468,1714276240667,-150.0,0.00019997,2]
[323771469,1714276240677,-859.9247779,0.0002,2]
[323771470,1714276240687,-5172.2764967,0.0002,2]
[323771471,1714276240696,-1258.19310485,0.0002,2]
[323771472,1714276240706,-186.17767163,0.0002,2]
[323771473,1714276240715,-155.0,0.0002,2]
[323771474,1714276240726,-151.29703378,0.0002001,2]
[323771475,1714276240735,-150.0,0.00020023,2]
[323771476,1714276240744,-169.2,0.00020049,10]
[323771478,1714276240753,-150.0,0.00020055,2]
[323771480,1714276240763,-151.29703378,0.00020086,2]
[323771482,1714276240772,-151.29703378,0.00020162,2]
[323771484,1714276240782,-150.0,0.00020192,2]
[323771486,1714276240790,-151.29703378,0.00020238,2]
[323771488,1714276240800,-150.0,0.00020309,2]
[323771489,1714276240809,-151.29703378,0.00020315,2]
[323771490,1714276240820,-151.29703378,0.00020391,2]
[323771491,1714276240829,-150.0,0.00020391,2]
[323771492,1714276240839,-566.172,0.00020428,2]
[323771493,1714276240848,-150.0,0.00020456,2]
[323771494,1714276240857,-150.0,0.00020463,2]
[323771495,1714276240867,-151.29703378,0.00020467,2]
[323771496,1714276240877,-150.0,0.000205,2]
[323771497,1714276240887,-155.0,0.00020501,2]
[323771498,1714276240899,-169.53,0.00020528,2]
[323771499,1714276240910,-150.0,0.0002054,2]
[323771500,1714276240923,-151.29703378,0.00020543,2]
[323771501,1714276240935,-1670.0,0.000206,2]
[323771502,1714276240947,-151.29703378,0.0002062,2]
[323771503,1714276240960,-414.05,0.0002063,2]
[323771504,1714276240973,-910.96,0.0002063,2]
[323771505,1714276240985,-910.96,0.0002063,2]
[323771506,1714276240994,-414.05,0.0002063,2]
[323771507,1714276241003,-910.96,0.0002063,2]
[323771508,1714276241013,-414.05,0.0002063,2]
[323771509,1714276241023,-414.05,0.0002063,2]
[323771510,1714276241034,-390.01,0.0002063,2]
[323771511,1714276241044,-910.54,0.0002063,2]
[323771512,1714276241055,-414.05,0.0002063,2]
[323771513,1714276241066,-299.57073464,0.0002063,10]
[323771514,1714276241076,-161.24761534,0.00020651,2]
[323771515,1714276241085,-150.0,0.00020672,2]
[323771516,1714276241094,-1162.36,0.00020675,2]
[323771517,1714276241103,-151.29703378,0.00020696,2]
[323771518,1714276241111,-346.42,0.00020703,2]
[323771519,1714276241121,-150.0,0.00020703,2]
[323771520,1714276241130,-299.57073464,0.00020712,10]
[323771521,1714276241139,-924.46,0.00020741,2]
[323771522,1714276241148,-151.29703378,0.00020772,2]
[323771523,1714276241158,-150.0,0.00020792,2]
[323771524,1714276241167,-299.57073464,0.00020795,10]
[323771525,1714276241176,-278.94984321,0.00020803,2]
[323771526,1714276241185,-150.0,0.00020816,2]
[323771527,1714276241194,-161.24761534,0.00020817,2]
[323771528,1714276241203,-150.0,0.00020834,2]
[323771529,1714276241214,-150.0,0.00020848,2]
[323771530,1714276241223,-151.29703378,0.00020848,2]
[323771531,1714276241232,-299.57073464,0.00020877,10]
[323771532,1714276241242,-150.0,0.00020882,2]
[323771533,1714276241252,-150.0,0.00020898,2]
[323771534,1714276241262,-500.0,0.000209,7]
[323771535,1714276241272,-286.12,0.00020915,2]
[323771536,1714276241282,-160.7,0.00020917,2]
[323771537,1714276241294,-151.29703378,0.00020924,2]
[323771538,1714276241304,-150.0,0.00020925,2]
[323771539,1714276241314,-174.12900968,0.00020968,2]
[323771540,1714276241326,-150.0,0.00020978,2]
[323771541,1714276241336,-299.57073464,0.00020986,10]
[323771542,1714276241346,-715.94935382,0.00021,2]
[323771543,1714276241356,-150.0,0.00021,2]
[323771544,1714276241367,-151.29703378,0.00021001,2]
[323771545,1714276241377,-10542.57572613,0.00021016,2]
[323771546,1714276241387,-150.0,0.00021024,2]
[323771547,1714276241397,-299.57073464,0.00021068,10]
[323771548,1714276241407,-151.29703378,0.00021077,2]
[323771549,1714276241417,-150.0,0.000211,2]
[323771550,1714276241426,-150.0,0.000211,2]
[323771551,1714276241436,-169.94657607,0.00021145,2]
[323771552,1714276241446,-299.57073464,0.00021151,10]
[323771553,1714276241455,-151.29703378,0.00021153,2]
[323771554,1714276241465,-150.0,0.00021157,2]
[323771555,1714276241475,-372.84,0.00021218,2]
[323771556,1714276241485,-151.29703378,0.00021229,2]
[323771557,1714276241494,-299.57073464,0.00021233,10]
[323771558,1714276241504,-150.0,0.00021245,2]
[323771559,1714276241513,-300.94,0.0002126,2]
[323771560,1714276241523,-150.0,0.0002127,2]
[323771561,1714276241533,-151.29703378,0.00021305,2]
[323771562,1714276241733,-299.57073464,0.00021315,10]
[323771563,1714276241744,-150.0,0.00021328,2]
[323771564,1714276241754,-150.0,0.00021364,2]
[323771565,1714276241763,-10542.5757261,0.00021369,2]
[323771566,1714276241772,-150.0,0.0002137,2]
[323771567,1714276241782,-690.64674927,0.0002138,2]
[323771568,1714276241792,-151.29703378,0.00021382,2]
[323771569,1714276241801,-299.57073464,0.00021397,10]
[323771570,1714276241811,-151.29703378,0.00021458,2]
[323771571,1714276241820,-162.42725162,0.00021463,2]
[323771572,1714276241830,-541.21,0.0002147,2]
[323771573,1714276241840,-150.0,0.00021472,2]
[323771574,1714276241849,-460.8712,0.00021475,2]
[323771575,1714276241859,-725.7876,0.00021477,2]
[323771576,1714276241868,-2115.65265172,0.00021477,2]
[323771577,1714276241877,-3071.20810051,0.00021477,2]
[323771578,1714276241887,-5000.0,0.00021477,2]
[323771579,1714276241897,-178.34622386,0.00021477,2]
[323771580,1714276241907,-158.27020491,0.00021477,2]
[323771581,1714276241916,-411.10770444,0.00021477,2]
[323771582,1714276241926,-717.43794106,0.00021477,2]
[323771583,1714276241935,-156.51625365,0.00021477,2]
[323771584,1714276241944,-668.38825006,0.00021477,2]
[323771585,1714276241953,-294.25569877,0.00021477,2]
[323771586,1714276241962,-2456.21884976,0.00021477,2]
[323771587,1714276241973,-443.77481863,0.00021477,2]
[323771588,1714276241983,-475.86647176,0.00021477,2]
[323771589,1714276241993,-223.73871793,0.00021477,2]
[323771590,1714276242003,-155.24223797,0.00021477,2]
[323771591,1714276242013,-155.25425697,0.00021477,2]
[323771592,1714276242022,-2005.01208146,0.00021477,2]
[323771593,1714276242032,-203.65681012,0.00021477,2]
[323771594,1714276242042,-11416.92232108,0.00021478,2]
[323771595,1714276242051,-343.3913,0.00021479,2]
[323771596,1714276242061,-376.91,0.00021479,2]
[323771597,1714276242071,-302.01,0.00021479,2]
[323771598,1714276242081,-419.34,0.00021479,2]
[323771599,1714276242091,-150.0,0.00021479,2]
[323771600,1714276242101,-150.0,0.00021479,2]
[323771601,1714276242111,-419.34,0.00021479,2]
[323771602,1714276242121,-150.0,0.00021479,2]
[323771603,1714276242130,-419.34,0.00021479,2]
[323771604,1714276242140,-150.0,0.00021479,2]
[323771605,1714276242149,-419.34,0.00021479,2]
[323771606,1714276242159,-910.96,0.00021479,2]
[323771607,1714276242169,-247.08,0.00021479,2]
[323771608,1714276242178,-910.96,0.00021479,2]
[323771609,1714276242187,-301.21,0.00021479,2]
[323771610,1714276242196,-414.05,0.00021479,2]
[323771611,1714276242207,-414.05,0.00021479,2]
[323771612,1714276242219,-909.86,0.00021479,2]
[323771613,1714276242228,-399.44,0.00021479,2]
[323771614,1714276242238,-166.79254619,0.0002148,2]
[323771615,1714276242247,-69561.92257475,0.0002148,2]
[323771616,1714276242263,-3145.12011062,0.0002148,2]
[323771617,1714276242274,-7364.17179094,0.0002148,2]
[323771618,1714276242292,-3207.0042,0.0002148,2]
[323771619,1714276242304,-512.307232,0.0002148,2]
[323771620,1714276242315,-7261.56049169,0.0002148,2]
[323771621,1714276242324,-173.56943637,0.0002148,2]
[323771622,1714276242334,-10000.0,0.0002148,2]
[323771623,1714276242343,-195.99750434,0.0002148,2]
[323771624,1714276242352,-5534.77065764,0.0002148,2]
[323771625,1714276242361,-395.32368242,0.0002148,2]
[323771626,1714276242370,-153.30227797,0.0002148,2]
[323771627,1714276242380,-2000.0,0.000215,3]
[323771628,1714276242389,-2000.0,0.000215,3]
[323771629,1714276242398,-2000.0,0.000215,3]
[323771630,1714276242407,-1608.0,0.000215,3]
[323771631,1714276242416,-800.0,0.000215,7]
[323771632,1714276242425,-150.0,0.000215,3]
[323771633,1714276242435,-200.0,0.00021506,2]
[323771634,1714276242444,-200.0,0.00021507,2]
[323771635,1714276242454,-200.0,0.00021507,2]
[323771636,1714276242463,-299.57073464,0.00021507,10]
[323771637,1714276242474,-518.0,0.00021524,2]
[323771638,1714276242483,-151.29703378,0.00021534,2]
[323771639,1714276242493,-161.24761534,0.0002156,2]
[323771640,1714276242502,-800.0,0.00021562,2]
[323771641,1714276242512,-299.34,0.00021562,2]
[323771642,1714276242521,-163.16332056,0.00021569,2]
[323771643,1714276242530,-163.16332056,0.00021569,2]
[323771644,1714276242539,-541.21,0.00021569,2]
[323771645,1714276242548,-541.21,0.00021569,2]
[323771646,1714276242558,-541.21,0.00021569,2]
[323771647,1714276242567,-541.21,0.00021569,2]
[323771648,1714276242576,-1000.0,0.00021572,2]
[323771649,1714276242585,-1057.1087,0.00021572,2]
[323771650,1714276242594,-6223.025544,0.00021578,2]
[323771651,1714276242604,-155.0,0.00021578,2]
[323771652,1714276242613,-1000.0,0.00021578,2]
[323771653,1714276242623,-3565.03432543,0.00021578,2]
[323771654,1714276242632,-45210.69570605,0.00021578,2]
[323771655,1714276242641,-1767.55512764,0.00021579,2]
[323771656,1714276242651,-151.0,0.00021579,2]
[323771657,1714276242661,-453.925063,0.00021579,2]
[323771658,1714276242670,-453.925063,0.00021579,2]
[323771659,1714276242679,-164.903051,0.00021579,2]
[323771660,1714276242689,-151.0,0.00021579,2]
[323771661,1714276242699,-150.0,0.00021579,5]
[323771662,1714276242708,-179777.50132918,0.0002158,2]
[323771686,1714276243240,-4323.09,0.00013788,2]
[323771689,1714276243250,-150.0,0.00020931,2]
[323771692,1714276243259,-20754.03682392,0.0002158,2]
[323771699,1714276243308,-150.0,0.00020817,2]
[323771701,1714276243318,-1169.0,0.0002158,2]
[323771703,1714276243353,-150.0,0.00020902,2]
[323771704,1714276243366,-693.4,0.0002158,2]
[323771713,1714276245067,-150.0,0.00020095,2]
[323771714,1714276245077,-150.0,0.00020234,2]
[323771715,1714276245086,-150.0,0.00020276,2]
[323771716,1714276245096,-150.0,0.00020427,2]
[323771717,1714276245105,-150.0,0.00020955,2]
[323771718,1714276245114,-150.0,0.00021085,2]
[323771719,1714276245124,-150.0,0.00021178,2]
[323771720,1714276245133,-150.0,0.00021299,2]
[323771721,1714276245143,-150.0,0.00021381,2]
[323771722,1714276245153,-150.0,0.00021389,2]
[323771723,1714276245162,-150.0,0.0002139,2]
[323771724,1714276245172,-150.0,0.0002148,2]
[323771725,1714276245182,-1018165.76335428,0.0002158,2]
[323771726,1714276245199,-301.85818911,0.0002158,2]
[323771727,1714276245230,-640.77689321,0.0002158,2]
[323771728,1714276245282,-274.733615,0.0002158,2]
[323771729,1714276245296,-7422.1201178,0.0002158,2]
[323771730,1714276245372,-1000.54565817,0.0002158,2]
[323771731,1714276245448,-389970.01027016,0.0002158,2]
[323771745,1714276246367,-277.37,0.0002063,2]
[323771746,1714276246377,-396.12542188,0.0002158,2]
[323771747,1714276246463,-2790.84532239,0.0002158,2]
[323771750,1714276317646,1651.0,6.94e-05,2]
[323771751,1714276317670,638.99232713,6.94e-05,2]
[323771778,1714277432540,-160.07987315,0.00010867,2]
[323771779,1714277432550,-286.82012685,0.00010966,2]
[323771780,1714277432573,-476.95117666,0.00010966,2]
[323771781,1714277432598,-368.36047548,0.00010966,2]
[323771782,1714277432611,-436.11304213,0.00010966,2]
[323771783,1714277432621,-9563.92395787,0.00010967,2]
[323771784,1714277432651,-791.63952452,0.00010967,2]
[323771802,1714277432913,-1718.69881709,0.00010967,2]
[323771804,1714277432960,-503.022718,0.00010967,2]
[323771833,1714277438485,-8413.47887091,0.00010967,2]
[323771834,1714277438494,-200.0,0.00011,2]
[323771835,1714277438504,-483.55877448,0.00011078,2]
[323771836,1714277438514,-162.42936305,0.00011079,2]
[323771837,1714277438524,-31164.87559809,0.0001108,2]
[323771838,1714277438555,-25202.83882992,0.0001108,2]
[323771839,1714277438565,-456.16194059,0.000115,2]
[323771840,1714277438574,-6659.03586727,0.00011818,2]
[323771841,1714277438586,-719.132305,0.00014671,2]
[323771842,1714277438595,-200.0,0.00014671,2]
[323771843,1714277438605,-499.99,0.00014671,2]
[323771844,1714277438616,-719.132305,0.00014854,2]
[323771845,1714277438626,-5397.0,0.00015,2]
[323771846,1714277438636,-1029.38,0.00015,2]
[323771847,1714277438651,-719.132305,0.00015038,2]
[323771848,1714277438660,-719.132305,0.00015221,2]
[323771849,1714277438671,-200.0,0.00015405,2]
[323771850,1714277438683,-719.132305,0.00015405,2]
[323771851,1714277438695,-2926.96393884,0.00016183,2]
[323771852,1714277438706,-321.6,0.00016978,2]
[323771853,1714277438717,-4506.67906644,0.00018621,2]
[323771854,1714277438728,-10000.0,0.00018656,2]
[323771855,1714277438738,-200.0,0.00018738,2]
[323771856,1714277438747,-500.0,0.00018754,2]
[323771857,1714277438757,-819.39,0.00018832,2]
[323771858,1714277438766,-250.0,0.00018843,2]
[323771859,1714277438775,-150.0,0.0001887,2]
[323771860,1714277438787,-7465.08,0.00018872,2]
[323771861,1714277438797,-169.53,0.00018883,2]
[323771862,1714277438809,-169.2,0.00018921,10]
[323771863,1714277438818,-150.0,0.00018942,2]
[323771864,1714277438849,-210.6,0.0001896,2]
[323771865,1714277438858,-188.47,0.00019013,2]
[323771866,1714277438868,-150.0,0.0001912,2]
[323771867,1714277438879,-321.6,0.00019242,2]
[323771868,1714277438888,-150.0,0.00019272,2]
[323771869,1714277438898,-151.87,0.00019349,2]
[323771870,1714277438907,-150.0,0.00019369,2]
[323771871,1714277438917,-150.0,0.00019418,2]
[323771872,1714277438926,-156.53,0.00019446,2]
[323771873,1714277438935,-396.321,0.00019523,2]
[323771874,1714277438945,-396.321,0.00019612,2]
[323771875,1714277438955,-825.46,0.00019671,2]
[323771876,1714277438964,-396.321,0.00019701,2]
[323771877,1714277438974,-167.36990595,0.00019705,2]
[323771878,1714277438984,-800.0,0.00019781,2]
[323771879,1714277438993,-396.321,0.00019791,2]
[323771880,1714277439003,-2297.0,0.00019805,2]
[323771881,1714277439013,-970.0,0.00019805,2]
[323771882,1714277439023,-1394.0,0.00019805,2]
[323771883,1714277439033,-462.0,0.00019805,2]
[323771884,1714277439042,-1232.289,0.00019805,2]
[323771885,1714277439051,-1257.0,0.00019805,2]
[323771886,1714277439061,-542.0,0.00019805,2]
[323771887,1714277439070,-258.0,0.00019805,2]
[323771888,1714277439079,-610.0,0.00019805,2]
[323771889,1714277439089,-437.0,0.00019805,2]
[323771890,1714277439098,-437.88,0.00019805,2]
[323771891,1714277439107,-1859.0,0.00019805,2]
[323771892,1714277439116,-1475.0,0.00019805,2]
[323771893,1714277439126,-2446.0,0.00019805,2]
[323771894,1714277439135,-420.0,0.00019805,2]
[323771895,1714277439144,-3121.0,0.00019805,2]
[323771896,1714277439154,-150.0,0.00019805,2]
[323771897,1714277439163,-443.0,0.00019805,2]
[323771898,1714277439171,-1641.0,0.00019805,2]
[323771899,1714277439181,-214.0,0.00019805,2]
[323771900,1714277439191,-1145.08,0.00019805,2]
[323771901,1714277439200,-5748.227,0.00019805,2]
[323771902,1714277439209,-430.481,0.00019805,2]
[323771903,1714277439218,-22289.056,0.00019805,2]
[323771904,1714277439227,-150.0,0.00019831,2]
[323771905,1714277439237,-396.321,0.00019881,2]
[323771906,1714277439246,-1055.64,0.00019945,2]
[323771907,1714277439255,-419.25,0.00019945,2]
[323771908,1714277439264,-396.321,0.00019973,2]
[323771909,1714277439273,-1190.47,0.0002,2]
[323771910,1714277439282,-859.9247779,0.0002,2]
[323771911,1714277439291,-188.47,0.00020004,2]
[323771912,1714277439300,-150.0,0.00020027,2]
[323771913,1714277439309,-1667.24,0.00020041,2]
[323771914,1714277439318,-414.05,0.00020041,2]
[323771915,1714277439328,-396.321,0.00020065,2]
[323771916,1714277439338,-405.589815,0.00020093,2]
[323771917,1714277439348,-1010.0,0.000201,2]
[323771918,1714277439358,-396.321,0.00020158,2]
[323771919,1714277439367,-150.0,0.0002019,2]
[323771920,1714277439376,-968.63,0.00020222,2]
[323771921,1714277439385,-396.321,0.00020252,2]
[323771922,1714277439395,-150.0,0.00020324,2]
[323771923,1714277439404,-414.05,0.00020341,2]
[323771924,1714277439414,-396.321,0.00020347,2]
[323771925,1714277439423,-168.21,0.00020404,2]
[323771926,1714277439433,-150.0,0.00020407,2]
[323771927,1714277439443,-800.0,0.00020411,2]
[323771928,1714277439452,-150.0,0.00020466,2]
[323771929,1714277439461,-150.0,0.0002047,2]
[323771930,1714277439471,-150.0,0.000205,2]
[323771931,1714277439480,-155.0,0.00020501,2]
[323771932,1714277439489,-150.0,0.00020525,2]
[323771933,1714277439499,-414.05,0.00020541,2]
[323771934,1714277439508,-150.0,0.00020543,2]
[323771935,1714277439517,-150.0,0.00020545,2]
[323771936,1714277439526,-150.0,0.00020555,2]
[323771937,1714277439536,-2563.722,0.00020578,2]
[323771938,1714277439546,-1684.0,0.000206,2]
[323771939,1714277439555,-1821.4,0.00020641,2]
[323771940,1714277439564,-150.0,0.00020685,2]
[323771941,1714277439577,-167.36990592,0.00020713,2]
[323771942,1714277439587,-150.0,0.00020713,2]
[323771943,1714277439596,-161.24761534,0.00020723,2]
[323771944,1714277439606,-150.0,0.0002073,2]
[323771945,1714277439615,-150.0,0.00020731,2]